bitfinex-derivatives/quotes_BTCF0:USTF0_20260207
["timestamp","ask_amount","ask_price","bid_price","bid_amount"]
[1770460771341,0.01491443,67719.0,67689.0,0.58014256]
[1770460771544,0.014776,67716.0,67689.0,0.58014256]
[1770460771841,0.00013943,67719.0,67691.0,0.58014256]
[1770460772845,0.014775,67718.0,67691.0,0.58014256]
[1770460773145,0.014776,67715.0,67691.0,0.58014256]
[1770460773843,0.01491443,67719.0,67691.0,0.58014256]
[1770460774242,0.014776,67716.0,67691.0,0.58014256]
[1770460774946,0.00013943,67719.0,67691.0,0.58014256]
[1770460775142,0.00013943,67719.0,67695.0,0.01478]
[1770460775339,0.01491443,67719.0,67694.0,0.58331961]
[1770460776447,0.014776,67713.0,67694.0,0.58331961]
[1770460776846,0.00013943,67719.0,67683.0,0.58333333]
[1770460777148,0.014778,67706.0,67675.0,0.014784]
[1770460777341,0.014779,67701.0,67674.0,0.59831833]
[1770460777543,0.014779,67701.0,67687.0,0.0002]
[1770460777743,0.01494264,67705.0,67687.0,0.0002]
[1770460778043,0.014779,67700.0,67687.0,0.0002]
[1770460778243,0.00988355,67705.0,67674.0,0.58333333]
[1770460778244,0.00971891,67702.0,67674.0,0.58333333]
[1770460778549,0.00971891,67702.0,67665.0,0.58009369]
[1770460778550,0.014781,67692.0,67665.0,0.58009369]
[1770460779045,0.014782,67688.0,67665.0,0.58009369]
[1770460779247,0.014782,67686.0,67665.0,0.58009369]
[1770460779936,0.00986345,67687.0,67658.0,0.58009369]
[1770460780140,0.014783,67684.0,67658.0,0.58009369]
[1770460780342,0.00014454,67687.0,67658.0,0.58009369]
[1770460780544,0.014783,67682.0,67658.0,0.58009369]
[1770460781135,0.014782,67686.0,67658.0,0.58009369]
[1770460781340,0.014782,67686.0,67658.0,0.59488169]
[1770460781744,0.01478,67698.0,67672.0,0.58333333]
[1770460782146,0.00493967,67692.0,67665.0,0.014787]
[1770460782452,0.014781,67693.0,67669.0,0.58168677]
[1770460782747,0.00493967,67695.0,67669.0,0.58168677]
[1770460782951,0.00011279,67694.0,67669.0,0.58168677]
[1770460783142,0.00505246,67694.0,67669.0,0.58168677]
[1770460783338,0.014781,67692.0,67669.0,0.58168677]
[1770460784552,0.00505246,67694.0,67669.0,0.58168677]
[1770460784553,0.00011279,67694.0,67669.0,0.58168677]
[1770460784845,0.014781,67692.0,67669.0,0.58168677]
[1770460785048,0.00093419,67694.0,67663.0,0.014787]
[1770460785243,0.00093419,67694.0,67660.0,0.014788]
[1770460785244,0.014783,67684.0,67660.0,0.014788]
[1770460785446,0.014783,67682.0,67659.0,0.58305953]
[1770460786138,0.014784,67680.0,67659.0,0.58305953]
[1770460786740,0.014783,67683.0,67659.0,0.59784753]
[1770460786941,0.0008214,67686.0,67663.0,0.59812033]
[1770460787141,0.00011279,67694.0,67663.0,0.59812033]
[1770460787142,0.00011279,67694.0,67665.0,0.014787]
[1770460787344,0.014783,67685.0,67663.0,0.58333333]
[1770460788041,0.00011279,67694.0,67663.0,0.58333333]
[1770460788742,0.00011279,67694.0,67646.0,0.0002]
[1770460788943,0.148,67719.0,67646.0,0.0002]
[1770460788944,0.15261199,67680.0,67646.0,0.0002]
[1770460789141,0.01491732,67679.0,67646.0,0.0002]
[1770460789349,0.014786,67669.0,67649.0,0.01479]
[1770460789542,0.00012125,67668.0,67637.0,0.58333333]
[1770460789748,0.00012125,67668.0,67641.0,0.58066418]
[1770460789938,0.00012125,67668.0,67650.0,0.01479]
[1770460790143,0.01767226,67673.0,67652.0,0.014789]
[1770460790343,0.01767226,67673.0,67642.0,0.57744257]
[1770460790344,0.014785,67672.0,67642.0,0.57744257]
[1770460790545,0.014785,67672.0,67649.0,0.01479]
[1770460790945,0.01767226,67673.0,67642.0,0.57744257]
[1770460790946,0.01767226,67673.0,67646.0,0.57744257]
[1770460791153,0.00012856,67672.0,67649.0,0.57744257]
[1770460791640,0.00012856,67672.0,67646.0,0.014791]
[1770460791641,0.014786,67667.0,67646.0,0.014791]
[1770460791849,0.014786,67667.0,67643.0,0.59223457]
[1770460792047,0.014786,67667.0,67644.0,1.28796257]
[1770460792449,0.01780082,67672.0,67645.0,0.58073049]
[1770460792655,0.00012856,67672.0,67646.0,0.58073049]
[1770460792950,0.014785,67671.0,67649.0,0.59552049]
[1770460793152,0.00012856,67672.0,67651.0,0.58073049]
[1770460793353,0.00012856,67672.0,67653.0,0.58073049]
[1770460794851,0.00925793,67670.0,67635.0,0.0001614]
[1770460795043,0.00925793,67662.0,67636.0,0.01479]
[1770460795244,0.00942694,67661.0,67636.0,0.01479]
[1770460795752,0.00016901,67661.0,67639.0,0.56304738]
[1770460796153,0.00016901,67661.0,67640.0,0.014792]
[1770460796356,0.00016901,67661.0,67639.0,0.57783738]
[1770460797256,0.00016901,67661.0,67643.0,0.014792]
[1770460797459,0.00581427,67661.0,67641.0,0.014792]
[1770460797751,0.00581427,67661.0,67634.0,0.55282434]
[1770460797953,0.00016901,67661.0,67638.0,0.55282434]
[1770460798148,0.01495701,67661.0,67641.0,0.014792]
[1770460798452,0.00016901,67661.0,67641.0,0.014792]
[1770460798853,0.08436686,67672.0,67646.0,0.55521104]
[1770460799157,0.014785,67674.0,67651.0,0.57000104]
[1770460799654,0.014785,67672.0,67651.0,0.55521104]
[1770460799853,0.00013299,67671.0,67651.0,0.55521104]
[1770460800051,0.05696346,67671.0,67642.0,0.56438984]
[1770460800555,0.014787,67662.0,67642.0,0.56438984]
[1770460800753,0.05696346,67671.0,67646.0,0.56438984]
[1770460801054,0.014787,67666.0,67646.0,0.56438984]
[1770460801351,0.00013299,67671.0,67649.0,0.56438984]
[1770460801553,0.00013299,67671.0,67652.0,0.56438984]
[1770460802154,0.01491899,67671.0,67652.0,0.56438984]
[1770460802447,0.00013299,67671.0,67652.0,0.56438984]
[1770460802654,0.00013299,67671.0,67652.0,0.57917884]
[1770460802844,0.0249724,67699.0,67652.0,0.56438984]
[1770460803045,0.0249724,67699.0,67671.0,0.014785]
[1770460803253,0.014781,67692.0,67665.0,0.57496486]
[1770460803447,0.014781,67690.0,67668.0,0.014786]
[1770460803946,0.07388,67716.0,67668.0,0.014786]
[1770460803947,0.02510539,67709.0,67678.0,0.57496486]
[1770460804146,0.02510539,67709.0,67680.0,0.57572644]
[1770460804349,0.014776,67715.0,67685.0,0.57572644]
[1770460804552,0.014776,67713.0,67690.0,0.014781]
[1770460804751,0.014775,67720.0,67690.0,0.57572644]
[1770460805055,0.43785858,67744.0,67685.0,0.57572644]
[1770460805056,0.014775,67721.0,67685.0,0.57572644]
[1770460805250,0.02282066,67729.0,67685.0,0.57572644]
[1770460805449,0.03759466,67724.0,67698.0,0.59050544]
[1770460805851,0.014774,67724.0,67701.0,0.59206207]
[1770460806352,0.014774,67724.0,67701.0,0.57728307]
[1770460806953,0.073851,67743.0,67681.0,0.58333333]
[1770460807158,0.014775,67720.0,67696.0,0.01478]
[1770460807757,0.014775,67720.0,67692.0,0.58333333]
[1770460807758,0.014771,67736.0,67699.0,0.014779]
[1770460808060,0.014775,67721.0,67699.0,0.59811233]
[1770460808255,0.014775,67721.0,67699.0,0.58333333]
[1770460808862,0.014774,67726.0,67699.0,0.58333333]
[1770460809054,0.014775,67720.0,67699.0,0.58333333]
[1770460810058,0.014775,67721.0,67699.0,0.59811233]
[1770460810362,0.014775,67718.0,67699.0,0.58333333]
[1770460810560,0.014774,67722.0,67699.0,0.58333333]
[1770460810760,0.014774,67722.0,67701.0,0.58333333]
[1770460811263,0.014771,67739.0,67703.0,0.58333333]
[1770460811264,0.014774,67723.0,67703.0,0.58333333]
[1770460811564,0.014772,67733.0,67711.0,0.58333333]
[1770460812055,0.014768,67750.0,67714.0,0.58333333]
[1770460812056,0.014771,67736.0,67714.0,0.58333333]
[1770460812449,0.014771,67739.0,67717.0,0.59810833]
[1770460812966,0.014771,67736.0,67717.0,0.58333333]
[1770460813851,0.014771,67739.0,67717.0,0.58333333]
[1770460814055,0.014771,67739.0,67717.0,0.59810833]
[1770460814459,0.01477,67743.0,67721.0,0.58333333]
[1770460814661,0.45262258,67767.0,67727.0,0.58333333]
[1770460814860,0.014769,67749.0,67727.0,0.58333333]
[1770460815262,0.014768,67752.0,67731.0,0.58333333]
[1770460815464,0.01477,67744.0,67722.0,0.014774]
[1770460815858,0.01477,67744.0,67722.0,0.59810733]
[1770460816867,0.01477,67744.0,67722.0,0.58333333]
[1770460817766,0.014771,67739.0,67722.0,0.58333333]
[1770460817967,0.073824,67767.0,67722.0,0.58333333]
[1770460817968,0.014769,67746.0,67722.0,0.58333333]
[1770460818770,0.014769,67746.0,67723.0,0.014774]
[1770460819070,0.014768,67749.0,67726.0,0.58333333]
[1770460819264,0.014765,67764.0,67726.0,0.58333333]
[1770460819265,0.014769,67747.0,67726.0,0.58333333]
[1770460819469,0.014769,67745.0,67726.0,0.58333333]
[1770460820367,0.014765,67764.0,67726.0,0.58333333]
[1770460820571,0.01477,67744.0,67726.0,0.58333333]
[1770460820863,0.014766,67760.0,67726.0,0.58333333]
[1770460821072,0.01477,67742.0,67726.0,0.58333333]
[1770460821567,0.58381144,67786.0,67729.0,0.58333333]
[1770460821765,0.014765,67763.0,67741.0,0.58333333]
[1770460821965,0.014765,67763.0,67743.0,0.58333333]
[1770460822170,0.014765,67766.0,67745.0,0.58333333]
[1770460822467,0.014765,67766.0,67722.0,0.014774]
[1770460822468,0.014769,67748.0,67727.0,0.58333333]
[1770460822968,0.014769,67748.0,67727.0,0.59810633]
[1770460823171,0.014767,67755.0,67732.0,0.58333333]
[1770460823361,0.014767,67758.0,67739.0,0.58333333]
[1770460823562,0.014768,67754.0,67739.0,0.58333333]
[1770460823959,0.00534715,67772.0,67739.0,0.56724525]
[1770460824364,0.014766,67759.0,67739.0,0.56724525]
[1770460824672,0.00534715,67772.0,67745.0,0.58333333]
[1770460825271,0.014766,67762.0,67745.0,0.58333333]
[1770460825466,0.00534715,67772.0,67746.0,0.58333333]
[1770460826171,0.014765,67766.0,67746.0,0.59810233]
[1770460826373,0.014764,67769.0,67751.0,0.58333333]
[1770460826572,0.014764,67769.0,67752.0,0.59810133]
[1770460826967,0.014765,67767.0,67752.0,0.58333333]
[1770460828474,0.014765,67767.0,67731.0,0.014772]
[1770460828475,0.073775,67813.0,67719.0,0.58333333]
[1770460828667,0.014767,67755.0,67719.0,0.58333333]
[1770460828867,0.014771,67736.0,67719.0,0.59810833]
[1770460829369,0.014772,67734.0,67719.0,0.58333333]
[1770460830270,0.014773,67730.0,67719.0,0.58333333]
[1770460831176,0.014767,67755.0,67719.0,0.58333333]
[1770460831371,0.014772,67734.0,67719.0,0.58333333]
[1770460831577,0.014772,67732.0,67719.0,0.58333333]
[1770460831775,0.43785858,67783.0,67710.0,0.58333333]
[1770460831973,0.014771,67737.0,67710.0,0.58333333]
[1770460832476,0.014775,67720.0,67710.0,0.58333333]
[1770460832978,0.00012756,67719.0,67710.0,0.58333333]
[1770460834780,0.00112756,67719.0,67710.0,0.58333333]
[1770460835373,0.00012756,67719.0,67710.0,0.58333333]
[1770460835574,0.00012756,67719.0,67697.0,3.3e-07]
[1770460835774,0.014779,67702.0,67697.0,3.3e-07]
[1770460836277,0.014778,67706.0,67697.0,3.3e-07]
[1770460836482,0.014777,67710.0,67697.0,3.3e-07]
[1770460836673,0.00012756,67719.0,67697.0,3.3e-07]
[1770460837370,0.00112756,67719.0,67697.0,3.3e-07]
[1770460837573,0.014778,67706.0,67697.0,3.3e-07]
[1770460839070,0.015778,67706.0,67697.0,3.3e-07]
[1770460839683,0.014779,67700.0,67688.0,0.5560337]
[1770460839879,0.00013525,67699.0,67688.0,0.5560337]
[1770460840081,0.014778,67703.0,67688.0,0.5560337]
[1770460840779,0.015778,67706.0,67688.0,0.5560337]
[1770460841086,0.014778,67703.0,67688.0,0.5560337]
[1770460843786,0.52978473,67725.0,67690.0,0.5560337]
[1770460844187,0.52978473,67725.0,67693.0,0.5560337]
[1770460844684,0.014777,67712.0,67693.0,0.5560337]
[1770460844884,0.54455873,67723.0,67693.0,0.5560337]
[1770460845080,0.014776,67713.0,67693.0,0.5560337]
[1770460845581,0.52978473,67716.0,67693.0,0.5560337]
[1770460845786,0.014779,67702.0,67685.0,0.5560337]
[1770460846086,0.014778,67704.0,67685.0,0.5560337]
[1770460846287,0.014779,67702.0,67685.0,0.5560337]
[1770460847494,0.014775,67719.0,67689.0,0.5560337]
[1770460847881,0.014776,67714.0,67693.0,0.5560337]
[1770460848077,0.014776,67715.0,67697.0,0.5560337]
[1770460848487,0.014775,67718.0,67699.0,0.5560337]
[1770460848683,0.014776,67714.0,67699.0,0.5560337]
[1770460849889,0.014775,67719.0,67701.0,0.5560337]
[1770460850481,0.014774,67722.0,67707.0,0.5560337]
[1770460851083,0.014776,67716.0,67707.0,0.5560337]
[1770460851292,0.52978473,67732.0,67707.0,0.5560337]
[1770460851494,0.014774,67722.0,67707.0,0.5560337]
[1770460851888,0.014773,67730.0,67707.0,0.5560337]
[1770460852089,0.014773,67730.0,67700.0,0.15300993]
[1770460852090,0.52978473,67753.0,67713.0,0.5560337]
[1770460852286,0.52978473,67749.0,67725.0,0.5708077]
[1770460852486,0.014771,67739.0,67725.0,0.5560337]
[1770460852685,0.014771,67736.0,67717.0,0.5560337]
[1770460852886,0.52978473,67749.0,67717.0,0.5560337]
[1770460852887,0.014772,67734.0,67717.0,0.5560337]
[1770460853092,0.014771,67737.0,67718.0,0.014775]
[1770460853389,0.014771,67737.0,67718.0,0.5708087]
[1770460853893,0.014772,67735.0,67718.0,0.5560337]
[1770460854091,0.014765,67765.0,67718.0,0.5560337]
[1770460854092,0.52978473,67750.0,67718.0,0.5560337]
[1770460854300,0.014769,67746.0,67725.0,0.5560337]
[1770460854496,0.01477,67743.0,67725.0,0.5560337]
[1770460855096,0.014769,67745.0,67725.0,0.5560337]
[1770460855692,0.52978473,67751.0,67725.0,0.5560337]
[1770460855897,0.014771,67736.0,67716.0,0.5560337]
[1770460856590,0.014773,67727.0,67716.0,0.5560337]
[1770460856797,0.014772,67732.0,67716.0,0.5560337]
[1770460857183,0.014772,67732.0,67682.0,0.073917]
[1770460857184,0.01477,67741.0,67723.0,0.5560337]
[1770460857387,0.52978473,67749.0,67723.0,0.5560337]
[1770460857786,0.014771,67737.0,67723.0,0.5560337]
[1770460857992,0.014772,67734.0,67723.0,0.5560337]
[1770460858585,0.52978473,67758.0,67730.0,0.5560337]
[1770460858901,0.014768,67752.0,67730.0,0.5560337]
[1770460859099,0.014768,67750.0,67730.0,0.5560337]
[1770460859400,0.52978473,67755.0,67730.0,0.5560337]
[1770460860395,0.52978473,67764.0,67736.0,0.5560337]
[1770460860599,0.014767,67755.0,67738.0,0.5560337]
[1770460861192,0.52978473,67764.0,67720.0,0.014775]
[1770460861193,0.52978473,67772.0,67743.0,0.5560337]
[1770460861493,0.014762,67777.0,67758.0,0.5560337]
[1770460861799,0.014762,67777.0,67760.0,0.5560337]
[1770460862098,0.014763,67774.0,67760.0,0.5560337]
[1770460862298,0.014762,67781.0,67760.0,0.5560337]
[1770460862500,0.014762,67778.0,67760.0,0.5560337]
[1770460862694,0.01476,67788.0,67768.0,0.5560337]
[1770460863403,0.014761,67786.0,67768.0,0.5560337]
[1770460863602,0.01476,67790.0,67770.0,0.5560337]
[1770460863992,0.52978473,67811.0,67772.0,0.5560337]
[1770460864195,0.52978473,67811.0,67747.0,0.014769]
[1770460864196,0.014757,67804.0,67776.0,0.5560337]
[1770460864393,0.52978473,67809.0,67782.0,0.5560337]
[1770460864809,0.52978473,67818.0,67782.0,0.5560337]
[1770460865207,0.52978473,67818.0,67788.0,0.5560337]
[1770460865401,0.52978473,67818.0,67770.0,0.15248354]
[1770460865402,0.014755,67812.0,67790.0,0.5560337]
[1770460865695,0.073755,67831.0,67781.0,0.54837928]
[1770460865696,0.52978473,67817.0,67781.0,0.54837928]
[1770460865900,0.014758,67799.0,67781.0,0.54837928]
[1770460866296,0.014757,67803.0,67783.0,0.54837928]
[1770460866899,0.014755,67812.0,67789.0,0.54837928]
[1770460867097,0.55036956,67819.0,67789.0,0.54837928]
[1770460867296,0.014756,67808.0,67789.0,0.54837928]
[1770460868002,0.55036956,67814.0,67776.0,0.54837928]
[1770460868203,0.55036956,67810.0,67778.0,0.54837928]
[1770460868509,0.014757,67803.0,67779.0,0.56314128]
[1770460869604,0.014757,67801.0,67779.0,0.54837928]
[1770460870911,0.54635725,67819.0,67782.0,0.56024661]
[1770460871305,0.54635725,67819.0,67788.0,0.56024661]
[1770460872109,0.014756,67807.0,67788.0,0.56024661]
[1770460872711,0.014757,67804.0,67788.0,0.56024661]
[1770460872899,0.014757,67801.0,67788.0,0.56024661]
[1770460873104,0.014757,67801.0,67775.0,0.56024661]
[1770460874507,0.54635725,67805.0,67777.0,0.56024661]
[1770460874713,0.014757,67804.0,67779.0,0.56024661]
[1770460875211,0.014757,67804.0,67781.0,0.56024661]
[1770460875412,0.014757,67802.0,67781.0,0.56024661]
[1770460875909,0.014756,67805.0,67781.0,0.56024661]
[1770460876111,0.54635725,67815.0,67781.0,0.56024661]
[1770460876508,0.014756,67808.0,67784.0,0.014761]
[1770460876712,0.014756,67808.0,67785.0,0.56024661]
[1770460876912,0.014756,67806.0,67785.0,0.56024661]
[1770460877510,0.54635725,67821.0,67785.0,0.56024661]
[1770460877511,0.014757,67804.0,67785.0,0.56024661]
[1770460877716,0.014757,67804.0,67768.0,0.014764]
[1770460877717,0.54635725,67835.0,67794.0,0.56024661]
[1770460877917,0.014751,67830.0,67799.0,0.56024661]
[1770460878108,0.014754,67817.0,67799.0,0.56024661]
[1770460879016,0.014753,67820.0,67799.0,0.56024661]
[1770460879210,0.014753,67818.0,67799.0,0.56024661]
[1770460879410,0.014754,67816.0,67799.0,0.56024661]
[1770460879611,0.014755,67813.0,67799.0,0.56024661]
[1770460880309,0.54635725,67837.0,67808.0,0.56024661]
[1770460880511,0.54635725,67835.0,67808.0,0.56024661]
[1770460880703,0.014752,67825.0,67808.0,0.56024661]
[1770460881717,0.54635725,67843.0,67811.0,0.56024661]
[1770460881917,0.54635725,67843.0,67813.0,0.56024661]
[1770460882320,0.01475,67832.0,67813.0,0.56024661]
[1770460883019,0.54635725,67843.0,67813.0,0.56024661]
[1770460883222,0.014751,67831.0,67813.0,0.56024661]
[1770460884515,0.54635725,67838.0,67799.0,0.014757]
[1770460884721,0.54635725,67834.0,67800.0,0.56024661]
[1770460885022,0.54635725,67831.0,67800.0,0.56024661]
[1770460885223,0.014753,67820.0,67800.0,0.56024661]
[1770460885518,0.014754,67814.0,67800.0,0.56024661]
[1770460886117,0.014756,67807.0,67790.0,0.56024661]
[1770460886713,0.56110925,67827.0,67800.0,0.56124661]
[1770460886920,0.014754,67814.0,67800.0,0.56124661]
[1770460887924,0.014752,67826.0,67806.0,0.56024661]
[1770460888125,0.014752,67824.0,67806.0,0.56024661]
[1770460888331,0.014754,67814.0,67798.0,0.56024661]
[1770460888820,0.54635725,67824.0,67798.0,0.56024661]
[1770460889018,0.014755,67811.0,67798.0,0.56024661]
[1770460889220,0.014755,67809.0,67798.0,0.56024661]
[1770460890125,0.54635725,67816.0,67789.0,0.56024661]
[1770460890319,0.014757,67804.0,67789.0,0.56024661]
[1770460891425,0.54635725,67812.0,67785.0,0.00014765]
[1770460891727,0.014759,67794.0,67785.0,0.00014765]
[1770460892720,0.014758,67797.0,67785.0,0.00014765]
[1770460893616,0.014759,67795.0,67785.0,0.00014765]
[1770460896028,0.52521759,67805.0,67785.0,0.00014765]
[1770460896221,0.014757,67804.0,67785.0,0.00014765]
[1770460896717,0.014759,67794.0,67785.0,0.00014765]
[1770460897122,0.014759,67791.0,67785.0,0.00014765]
[1770460897328,0.52521759,67800.0,67785.0,0.00014765]
[1770460897627,0.014758,67798.0,67785.0,0.00014765]
[1770460898224,0.014758,67796.0,67785.0,0.00014765]
[1770460898423,0.014759,67794.0,67785.0,0.00014765]
[1770460899330,0.014759,67792.0,67785.0,0.00014765]
[1770460900025,0.014759,67795.0,67785.0,0.00014765]
[1770460900224,0.014759,67793.0,67785.0,0.00014765]
[1770460901621,0.014759,67791.0,67785.0,0.00014765]
[1770460902034,0.52521759,67802.0,67785.0,0.00014765]
[1770460902331,0.001,67793.0,67785.0,0.00014765]
[1770460902536,0.01476,67790.0,67785.0,0.00014765]
[1770460903030,0.015759,67793.0,67785.0,0.00014765]
[1770460904131,0.014759,67793.0,67785.0,0.00014765]
[1770460904834,0.015759,67793.0,67785.0,0.00014765]
[1770460905238,0.014759,67791.0,67785.0,0.00014765]
[1770460906933,0.015759,67791.0,67785.0,0.00014765]
[1770460907333,0.001,67791.0,67785.0,0.00014765]
[1770460907733,0.0002,67826.0,67785.0,0.54454227]
[1770460907734,0.014758,67798.0,67785.0,0.54454227]
[1770460907929,0.001,67791.0,67785.0,0.00014765]
[1770460908532,0.014758,67797.0,67785.0,0.00014765]
[1770460908838,0.014758,67795.0,67785.0,0.00014765]
[1770460909231,0.014758,67796.0,67785.0,0.00014765]
[1770460910034,0.52521759,67810.0,67785.0,0.54454227]
[1770460910342,0.014757,67802.0,67785.0,0.54454227]
[1770460910635,0.014753,67818.0,67785.0,0.54454227]
[1770460910636,0.52521759,67807.0,67785.0,0.54454227]
[1770460911034,0.014758,67799.0,67785.0,0.54454227]
[1770460911428,0.014757,67802.0,67785.0,0.54454227]
[1770460914340,0.014756,67805.0,67785.0,0.54454227]
[1770460914540,0.014757,67803.0,67785.0,0.54454227]
[1770460915241,0.52521759,67814.0,67787.0,0.54439462]
[1770460915943,0.014757,67803.0,67787.0,0.54439462]
[1770460916338,0.014756,67806.0,67787.0,0.54439462]
[1770460916539,0.014756,67804.0,67787.0,0.54439462]
[1770460920041,0.014757,67802.0,67787.0,0.54439462]
[1770460920545,0.014756,67805.0,67787.0,0.54439462]
[1770460921834,0.014754,67814.0,67794.0,0.54439462]
[1770460922042,0.014755,67810.0,67794.0,0.54439462]
[1770460923245,0.014755,67813.0,67794.0,0.54439462]
[1770460923839,0.52521759,67822.0,67794.0,0.54439462]
[1770460924038,0.014754,67818.0,67797.0,0.54439462]
[1770460924339,0.0002,67842.0,67803.0,0.54439462]
[1770460924340,0.014752,67823.0,67803.0,0.54439462]
[1770460924543,0.014753,67821.0,67803.0,0.54439462]
[1770460924940,0.014752,67827.0,67805.0,0.54439462]
[1770460925141,0.014752,67827.0,67807.0,0.54439462]
[1770460925647,0.014751,67830.0,67809.0,0.54439462]
[1770460925849,0.014751,67828.0,67809.0,0.54439462]
[1770460926548,0.52976915,67832.0,67809.0,0.54439462]
[1770460926754,0.014752,67824.0,67809.0,0.54439462]
[1770460927350,0.014752,67827.0,67809.0,0.54439462]
[1770460928146,0.014752,67825.0,67809.0,0.54439462]
[1770460928347,0.014752,67823.0,67809.0,0.54439462]
[1770460928543,0.014752,67826.0,67809.0,0.54439462]
[1770460929349,0.014751,67829.0,67809.0,0.54439462]
[1770460929659,0.01475,67832.0,67809.0,0.55914962]
[1770460929951,0.0002,67853.0,67825.0,0.53777114]
[1770460930148,0.0002,67853.0,67820.0,0.15229483]
[1770460930149,0.014747,67849.0,67828.0,0.53777114]
[1770460930550,0.014746,67852.0,67831.0,0.01475]
[1770460930850,0.0002,67870.0,67820.0,0.39689483]
[1770460930851,0.014745,67858.0,67836.0,0.53777114]
[1770460932949,0.014745,67858.0,67825.0,0.2446]
[1770460932950,0.53117005,67873.0,67845.0,0.53777114]
[1770460933252,0.014742,67872.0,67847.0,0.53777114]
[1770460933653,0.53117005,67881.0,67851.0,0.53777114]
[1770460933846,0.53117005,67871.0,67843.0,0.53777114]
[1770460934048,0.014745,67859.0,67843.0,0.53777114]
[1770460934247,0.53117005,67861.0,67843.0,0.53777114]
[1770460934458,0.53117005,67861.0,67835.0,0.53777114]
[1770460934642,0.014742,67871.0,67834.0,0.00015043]
[1770460934643,0.53117005,67852.0,67834.0,0.00015043]
[1770460934847,0.014748,67843.0,67834.0,0.00015043]
[1770460935050,0.54591705,67847.0,67834.0,0.00015043]
[1770460935249,0.53117005,67847.0,67834.0,0.00015043]
[1770460935455,0.014747,67846.0,67834.0,0.00015043]
[1770460935649,0.014747,67846.0,67821.0,0.53777114]
[1770460935650,0.014749,67838.0,67821.0,0.53777114]
[1770460935849,0.014749,67838.0,67820.0,0.15229483]
[1770460935850,0.53117005,67840.0,67820.0,0.15229483]
[1770460936050,0.014749,67837.0,67820.0,0.15229483]
[1770460936750,0.54592105,67830.0,67804.0,0.53777114]
[1770460937755,0.54592105,67830.0,67805.0,0.014756]
[1770460937956,0.54592105,67830.0,67806.0,0.53777114]
[1770460938454,0.01475,67834.0,67806.0,0.53777114]
[1770460938661,0.0002,67835.0,67813.0,0.53777114]
[1770460938955,0.53117005,67846.0,67826.0,0.53777114]
[1770460939156,0.014743,67867.0,67826.0,0.53777114]
[1770460939157,0.0002,67843.0,67827.0,0.014751]
[1770460939455,0.0002,67843.0,67826.0,0.53777114]
[1770460940158,0.014746,67853.0,67826.0,0.53777114]
[1770460940359,0.53117005,67855.0,67832.0,0.53777114]
[1770460940561,0.014745,67855.0,67832.0,0.53777114]
[1770460941854,0.53117005,67860.0,67832.0,0.53777114]
[1770460942755,0.014745,67856.0,67832.0,0.55252114]
[1770460943150,0.014746,67854.0,67832.0,0.53777114]
[1770460943355,0.53117005,67860.0,67829.0,0.014751]
[1770460943356,0.014746,67852.0,67834.0,0.53777114]
[1770460945660,0.53117005,67852.0,67825.0,0.53777114]
[1770460945862,0.53117005,67838.0,67806.0,0.53777114]
[1770460946068,0.014752,67827.0,67806.0,0.53777114]
[1770460946756,0.53117005,67830.0,67806.0,0.53777114]
[1770460946959,0.014753,67819.0,67800.0,0.15229483]
[1770460947358,0.53117005,67836.0,67805.0,0.53777114]
[1770460947660,0.01488825,67829.0,67805.0,0.53777114]
[1770460948058,0.53117005,67836.0,67805.0,0.53777114]
[1770460948452,0.014751,67831.0,67809.0,0.53777114]
[1770460950068,0.014751,67829.0,67809.0,0.53777114]
[1770460951463,0.53117005,67828.0,67801.0,0.53777114]
[1770460951669,0.014753,67820.0,67801.0,0.53777114]
[1770460951963,0.53117005,67826.0,67801.0,0.53777114]
[1770460952167,0.01475,67834.0,67795.0,0.00015789]
[1770460952168,0.014756,67807.0,67795.0,0.00015789]
[1770460952471,0.014755,67810.0,67795.0,0.00015789]
[1770460952766,0.014755,67810.0,67801.0,0.001]
[1770460954262,0.014755,67810.0,67795.0,0.00015789]
[1770460954465,0.014753,67822.0,67785.0,0.53777114]
[1770460954466,0.53117005,67805.0,67785.0,0.53777114]
[1770460955466,0.014758,67799.0,67785.0,0.53777114]
[1770460955667,0.53117005,67803.0,67777.0,0.53777114]
[1770460955871,0.53117005,67803.0,67777.0,0.55253314]
[1770460956068,0.014758,67795.0,67777.0,0.53777114]
[1770460956972,0.53117005,67803.0,67777.0,0.53777114]
[1770460956973,0.014759,67792.0,67777.0,0.53777114]
[1770460957172,0.014759,67795.0,67777.0,0.53777114]
[1770460957370,0.014757,67803.0,67781.0,0.55078134]
[1770460957675,0.00013529,67804.0,67781.0,0.55078134]
[1770460957973,0.014758,67797.0,67781.0,0.55078134]
[1770460958677,0.014757,67800.0,67781.0,0.55078134]
[1770460959765,0.014758,67798.0,67781.0,0.55078134]
[1770460960166,0.53518113,67804.0,67766.0,0.55078134]
[1770460960576,0.53518113,67804.0,67763.0,0.00011605]
[1770460960577,0.53504584,67800.0,67772.0,0.55078134]
[1770460960875,0.014759,67792.0,67772.0,0.55078134]
[1770460961171,0.00013529,67804.0,67763.0,0.00011605]
[1770460961172,0.01476,67786.0,67765.0,0.014765]
[1770460961367,0.53504584,67794.0,67763.0,0.55089739]
[1770460961368,0.014761,67784.0,67763.0,0.55089739]
[1770460961867,0.00016095,67785.0,67763.0,0.55089739]
[1770460962072,0.00016095,67785.0,67767.0,0.55078134]
[1770460964666,0.014759,67793.0,67772.0,0.55078134]
[1770460964871,0.014759,67791.0,67772.0,0.55078134]
[1770460965068,0.02964725,67794.0,67772.0,0.55078134]
[1770460965371,0.014759,67794.0,67772.0,0.55078134]
[1770460965771,0.014759,67794.0,67772.0,0.56554434]
[1770460965973,0.014758,67797.0,67775.0,0.55078134]
[1770460966376,0.53504584,67810.0,67783.0,0.55078134]
[1770460967174,0.014758,67799.0,67783.0,0.55078134]
[1770460967868,0.014758,67797.0,67783.0,0.55078134]
[1770460968877,0.014759,67795.0,67783.0,0.55078134]
[1770460970067,0.014758,67798.0,67783.0,0.55078134]
[1770460971569,0.014755,67809.0,67783.0,0.55078134]
[1770460971766,0.53504584,67814.0,67783.0,0.55078134]
[1770460971971,0.014757,67801.0,67783.0,0.55078134]
[1770460972770,0.014755,67813.0,67783.0,0.55078134]
[1770460972969,0.014758,67797.0,67783.0,0.55078134]
[1770460974977,0.014757,67800.0,67783.0,0.55078134]
[1770460975567,0.014758,67798.0,67783.0,0.55078134]
[1770460976875,0.53504584,67806.0,67783.0,0.55078134]
[1770460977073,0.53504584,67804.0,67783.0,0.55078134]
[1770460977572,0.014757,67802.0,67783.0,0.55078134]